Cogmind - Beta 13 @@@ ROGUE MODE // 2024.04.03 @ 16:29:00 Player: Copyrite Result: Destroyed by S-10 Pest with Light Assault Rifle Performance ------------- Evolutions (0) 0 Regions Visited (1) 200 Robots Destroyed (4) 20 Value Destroyed (107) 107 Prototype IDs (0) 0 Alien Tech Used (0) 0 Bonus (0) 0 TOTAL SCORE: 327 Bonus ------- None Cogmind --------- Core Integrity 0/250 Matter 293/300 Energy 125/125 System Corruption 27% Temperature Cool (0) Movement Core (100) Ox1 Location -10/Materials Parts ------- > --- POWER (1) -------- Light Ion Engine > --- PROPULSION (2) --- (None) > --- UTILITY (2) ------ (None) > --- WEAPON (2) ------- Medium Laser > --- INVENTORY (5) ---- Light Ion Engine Large Storage Unit High-capacity Storage Unit Sensor Array Signal Interpreter Peak State ------------ > --- POWER ------------ Light Ion Engine > --- PROPULSION ------- Hover Unit Hover Unit > --- UTILITY ---------- Improved Heat Sink Small Storage Unit > --- WEAPON ----------- Medium Laser Small Laser > --- INVENTORY -------- Light Ion Engine Large Storage Unit High-capacity Storage Unit Sensor Array Signal Interpreter EM Pulse Gun EM Pulse Gun [Rating: 9] Favorites ----------- Power Light Ion Engine Engine Light Ion Engine Propulsion Hover Unit Wheel Wheel Hover Unit Hover Unit Utility Small Storage Unit Device Improved Heat Sink Storage Small Storage Unit Weapon EM Pulse Gun Energy Gun EM Pulse Gun Special Weapon Mining Laser Build | -11 -10 ------- Run | Yrd Mat Slots Evolved . | . . Power . | . . Propulsion . | . . Utility . | . . Weapon . | . . Parts Attached 15 | 6 9 Power 4 | 1 3 Engine 4 | 1 3 Core . | . . Reactor . | . . Propulsion 4 | 2 2 Treads . | . . Leg . | . . Wheel 2 | 2 . Hover 2 | . 2 Flight . | . . Utility 2 | 1 1 Device 1 | . 1 Storage 1 | 1 . Processor . | . . Hackware . | . . Protection . | . . Artifact . | . . Weapon 5 | 2 3 Energy Gun 4 | 2 2 Energy Cannon . | . . Ballistic Gun . | . . Ballistic Cannon . | . . Launcher . | . . Special Weapon 1 | . 1 Impact Weapon . | . . Slashing Weapon . | . . Piercing Weapon . | . . Special Melee Weapon . | . . Unidentified Prototypes . | . . Corrupted Parts 1 | . 1 System Corruption 9 | . 9 Parts Lost 6 | . 6 Power 1 | . 1 Propulsion 2 | . 2 Utility 2 | . 2 Weapon 1 | . 1 Highest Loss Streak 5 | . 5 To Critical Strikes . | . . Average Slot Usage (%) 87 | . 87 Engine 12 | . 12 Wheel 13 | . 13 Hover 12 | . 12 Device 8 | . 8 Storage 13 | . 13 Energy Gun 21 | . 21 Special Weapon 4 | . 4 Naked Turns . | . . Heaviest Build 12 | 12 12 Greatest Support 26 | 26 26 Greatest Overweight (x) 3 | 3 1 Average Overweight (x) . | . . Largest Inventory Capacity 8 | 8 8 Average Capacity 7 | 7 7 Most Carried 7 | 1 7 Average Carried 4 | . 5 Final Capacity 8 | 8 5 Final Carried 5 | 1 5 Class Distribution -------------------- 100% | Mutant Dominant Class ---------------- Mutant | -10/Materials Resources | -11 -10 ----------- Run | Yrd Mat Matter Collected 318 | 170 148 Remotely . | . . Salvage Created 136 | . 136 Parts 10 | . 10 Haulers Intercepted . | . . Recyclers Shooed 2 | . 2 Parts Field Recycled . | . . Retrieved Matter . | . . Parts Self-Destructed . | . . Prevented . | . . Kills | -11 -10 ------- Run | Yrd Mat Combat Hostiles Destroyed 3 | . 3 Guns 2 | . 2 Classes Destroyed 3 | . 3 Watcher 1 | . 1 Swarmer 1 | . 1 Grunt 2 | . 2 Best Kill Streak 2 | . 2 Combat Bots Only 2 | . 2 Max Kills in Single Turn 1 | . 1 Gunslinging . | . . Exploded . | . . Melee . | . . Uniques/NPCs Destroyed . | . . Combat | -11 -10 -------- Run | Yrd Mat Hostile Shots Fired 42 | . 42 Missed 12 | . 12 Damage Taken 849 | . 849 Core 255 | . 255 Absorbed by Shields . | . . Core Remaining (%) 100 | 100 . Volleys Fired 34 | . 34 Largest 2 | . 2 Hottest 100 | . 100 Shots Fired 46 | . 46 Gun 39 | . 39 Cannon . | . . Launcher . | . . Special 7 | . 7 Kinetic . | . . Thermal 22 | . 22 Explosive . | . . Electromagnetic 24 | . 24 Robot Hit Streak 10 | . 10 Robot Miss Streak 6 | . 6 Penetration Max . | . . Secondary Targets . | . . Shots Hit Robots 19 | . 19 Core Hits 6 | . 6 Critical Kills . | . . Critical Parts Destroyed . | . . Critical Strikes . | . . Melee Attacks . | . . Impact . | . . Slashing . | . . Piercing . | . . Sneak Attacks . | . . Combat Hostiles . | . . Follow-up Attacks . | . . Damage Inflicted 419 | . 419 Guns 271 | . 271 Cannons . | . . Explosions 147 | . 147 Melee . | . . Ramming 1 | . 1 Kinetic . | . . Thermal 210 | . 210 Explosive . | . . Electromagnetic 208 | . 208 Impact . | . . Slashing . | . . Piercing . | . . Highest Corruption 27 | . 27 Average Corruption 10 | . 10 Corruption Purged . | . . Corruption Blocked . | . . Effects 7 | . 7 Message Errors 1 | . 1 Matter Fused 1 | . 1 Heat Flow Errors 2 | . 2 Energy Discharges 1 | . 1 Data Loss (major) 2 | . 2 Overload Shots . | . . Overflow Damage 22 | . 22 Projectiles . | . . Explosions 22 | . 22 Melee . | . . Knockbacks . | . . Impact . | . . Kinetic . | . . Secondary . | . . Self-Inflicted Damage 52 | . 52 Shots 1 | . 1 Rammed 1 | . 1 Targets Rammed 1 | . 1 Kicked . | . . Crushed . | . . Highest Temperature 213 | . 213 Average Temperature 110 | . 110 Received Heat Transfer 57 | . 57 Siege Activations . | . . Robots Corrupted 1 | . 1 Combat Hostiles 1 | . 1 Parts Fried 2 | . 2 Impact Corruptions . | . . Robots Melted . | . . Combat Hostiles . | . . Parts Melted . | . . Heat Transferred 335 | . 335 Parts Sabotaged . | . . Parts Stolen . | . . Parts Stripped . | . . Power Chain Reactions 2 | . 2 Alert | -11 -10 ------- Run | Yrd Mat Peak Influence 100 | . 100 Initial . | . . Average 37 | . 44 Maximum Alert Level . | . . Low Security (%) 100 | 100 100 Level 1 . | . . Level 2 . | . . Level 3 . | . . Level 4 . | . . Level 5 . | . . High Security . | . . Max Security . | . . Squads Dispatched 1 | . 1 Investigation 1 | . 1 Extermination . | . . Reinforcement . | . . Assault . | . . Garrison . | . . Intercept . | . . Searches Triggered . | . . Construction Impeded . | . . Haulers Reinforced . | . . Active Scanning Responses . | . . Cargo Convoy Interrupts . | . . Stealth | -11 -10 --------- Run | Yrd Mat Distress Signals . | . . Communications Jammed . | . . Distress Signals . | . . Times Spotted 6 | . 6 Peak Tracking Total 3 | . 3 Tactical Retreats . | . . Traps | -11 -10 ------- Run | Yrd Mat Traps Triggered 1 | . 1 Indirectly . | . . Trap Hack Attempts . | . . Triggered . | . . Disarmed . | . . Reprogrammed . | . . Reused . | . . Traps Extracted . | . . Installed . | . . Triggered . | . . Machines | -11 -10 ---------- Run | Yrd Mat Machines Disabled . | . . Max in Single Turn . | . . Machines Repaired . | . . Machines Dismantled . | . . Machines Sabotaged . | . . Overloaded Fab Kills . | . . Hacking | -11 -10 --------- Run | Yrd Mat Machines Accessed . | . . Terminals . | . . Fabricators . | . . Repair Stations . | . . Recycling Units . | . . Scanalyzers . | . . Garrison Access . | . . Total Hacks . | . . Successful . | . . Failed . | . . Catastrophic . | . . Database Lockouts . | . . Manual . | . . Terminals . | . . Fabricators . | . . Repair Stations . | . . Recycling Units . | . . Scanalyzers . | . . Garrison Access . | . . Terminal Hacks . | . . Fabricator Hacks . | . . Repair Station Hacks . | . . Recycling Unit Hacks . | . . Scanalyzer . | . . Garrison Access Hacks . | . . Unauthorized Hacks . | . . Terminals . | . . Fabricators . | . . Repair Stations . | . . Recycling Units . | . . Scanalyzers . | . . Garrison Access . | . . Data Cores Recovered . | . . Used . | . . Hacking Detections . | . . Full Trace Events . | . . Feedback Events . | . . Feedback Blocked . | . . Robot Schematics Acquired . | . . Robots Built . | . . Authchips . | . . Time . | . . Total Robot Build Rating . | . . Part Schematics Acquired . | . . Parts Built . | . . Authchips . | . . Time . | . . Total Part Build Rating . | . . Parts Repaired . | . . Time . | . . Parts Recycled . | . . Recycled Matter . | . . Retrieved Matter . | . . Retrieved Components . | . . Parts Scanalyzed . | . . Part Schematics Acquired . | . . Parts Damaged . | . . Bothacking | -11 -10 ------------ Run | Yrd Mat Used RIF Installer . | . . Robots Hacked . | . . Non-combat . | . . Combat . | . . Robot Hacks Applied . | . . Relay Couplers Released . | . . Fabnet Peak Effective % . | . . Robots Rewired . | . . Allies Hacked . | . . Hacks Repelled . | . . Allies | -11 -10 -------- Run | Yrd Mat Total Allies . | . . Largest Group . | . . Highest-Rated Group . | . . Highest-Rated Ally . | . . Total Orders . | . . Ally Attacks . | . . Total Damage . | . . Kills . | . . Allies Corrupted . | . . Allies Melted . | . . Intel | -11 -10 ------- Run | Yrd Mat Robot Analysis Total . | . . Derelict Logs Recovered . | . . Drone Launches . | . . Drone Recoveries . | . . Exploration | -11 -10 ------------- Run | Yrd Mat Turns Passed 375 | 53 322 Spaces Moved 302 | 46 256 Core 10 | 10 . Treads . | . . Legs . | . . Wheels 140 | 36 104 Hover 152 | . 152 Flight . | . . Fastest Speed 50 | 50 56 Average Speed 73 | 93 70 Slowest Speed 200 | 200 120 Overloaded Moves . | . . Propulsion Burnouts . | . . Robots Hopped . | . . Cave-ins Triggered 2 | . 2 Exploration Rate (%) 20 | 4 37 Regions Visited 1 Branch Regions . Pre-discovered Areas . | . . Known Exits Taken . | . . Unknown Exits Taken 1 | 1 . Scrap Searched . | . . Spaces Dug 7 | . 7 Terrain Destroyed 17 | . 17 Melee . | . . Projectile 7 | . 7 AOE 10 | . 10 Terrain Rammed . | . . Walls Destroyed . | . . Machines Disabled . | . . Actions | -11 -10 --------- Run | Yrd Mat Total 389 | 52 337 Wait 23 | . 23 Move 301 | 45 256 Hop . | . . Pick Up 10 | 1 9 Fast Attach 8 | 6 2 Attach 1 | . 1 Detach 1 | . 1 Swap 6 | . 6 Drop 4 | . 4 Fire 34 | . 34 Melee . | . . Ram 1 | . 1 Kick . | . . Crush . | . . Escape Stasis . | . . Rewire . | . . Trap . | . . Miscellaneous . | . . Route ------- -11/Scrapyard -10/Materials History --------- Turn | Location | Event 27 | -11/Scrapyard | Discovered new exit (range 15) 54 | -11/Scrapyard | Entered Materials 303 | -10/Materials | Build established: Mutant 334 | -10/Materials | Crushed by falling debris 334 | -10/Materials | Core integrity fell below 50% 334 | -10/Materials | System corruption reached 10% 360 | -10/Materials | Crushed by falling debris 360 | -10/Materials | Core integrity fell below 20% 376 | -10/Materials | Destroyed by S-10 Pest with Light Assault Rifle Last Messages --------------- S-10 Pest destroyed. R-06 Scavenger collects Flight Unit. R-06 Scavenger collects Lgt. Assault Rifle. System corrupted: Heat flow error (+221). R-06 Scavenger collects Lgt. Ion Engine. The unstable cave ceiling collapses. Crushed by falling debris. Mining Laser destroyed. System corrupted by crushing effect (+5). Sml. Storage Unit destroyed. System corrupted by crushing effect (+5). Imp. Heat Sink destroyed. System corrupted by crushing effect (+5). Sml. Laser crushed. Acquired 32 matter. R-06 Scavenger collects Lgt. Assault Rifle. R-06 Scavenger collects Ion Engine. Hover Unit destroyed. Slammed into S-10 Pest. Destabilizing: System corrupted (+1). Map ----- +----------------------------------------------------+ | | | ?????????????????????????????????????????????????? | | ?????????????????????????????????????????????????? | | ?????????????????????????????????????????????????? | | ?????????????????????????????????????????????????? | | ????????????????????????????????#########????????? | | ????????????????????????????????? #????????? | | ?????????????????????????????????"""" #????????? | | ?????????????????????????????????"""" #????##### | | ?????????????????????????????????"""" #????# | | ???????????????????????????????#""""" ###### | | ???????????????????????????????#""""" + ## | | ???????????????????????????????#""""" ### ## | | ???????????????????????????????#""""" #?# ## | | ???????????????????????????????# #?# ## """ | | ????????????????????#??????????#####+###### ## """ | | ????????????????????# ????????????# # """ | | ????????????????????# ??????####### ##### | | ????????????????????# | | ????????????????????# ?######## ###+#+### | | ????????????????????# # # ## # | | ????????????????????# # # ## # | | ????????????????????+ + """ # ## """ # | | ????????????????????# # """ # ## """ # """ | | ????????????????????# # s""" # ## """ + """ | | ????????????????????# ?#@ ; #" # """ | | ????????????????????# ?######## ;######## | | ???????????????????? ???# ##??# ##??????# | | ????????????????? ???####??# #???????# """ | | ????????????????? ####"### ######### """ | | ?????????????????#### """ | | ????????????????????# | | ????????????????????# | | ????????????????????#######/###############+##### | | ????????????????????????? ???????????# [ # | | ??????????????????????? ""????????????# * # | | ??????????????????????# "?????????????# [# | | ??????????????????????#???????????????# # | | ??????????????????????????????????????# + | | ??????????????????????????????????????# """ """ # | | ??????????????????????????????????????# """ """ # | | ??????????????????????????????????????# """ """ # | | ??????????????????????????????????????########### | | ?????????????????????????????????????????# + | | ?????????????????????????????????????????#""" # | | ?????????????????????????????????????????#""" # | | ?????????????????????????????????????????#""" # | | ?????????????????????????????????????????# # | | ?????????????????????????????????????????# # | | ?????????????????????????????????????????######## | +----------------------------------------------------+ Best States ------------- Heat Dissipation 39 Energy Generation 10 Energy Capacity 125 Matter Stores 290 Matter Capacity 300 Sight Range 16 Terrain Scan Density 10 Evasion (%) 53 Item Schematics ----------------- None Robot Schematics ------------------ None Fabricated ------------ Nothing Alien Tech Used ----------------- None Achievements -------------- Power Corrupts System Compromised Unlikely Earthworm Challenges ------------ None Game ------ Seed ThermalGravityConstruct Manual? 0 Play Time 00:07:52 Cumulative 3.9 hours Start 2024.04.03 @ 16:23:07 End 2024.04.03 @ 16:29:00 Sessions 1 Manual Loads 0 Difficulty Rogue Special Mode None Game No. 8 Rogue 8 Adventurer 0 Explorer 0 Win Type - Total 0 Types 0/0/0/0/0/0/0/0/0 Lore% 1 Gallery% 8 Achievement% 9 Wizard Run 0 Options --------- Layout 1 ASCII 0 Keyboard 0 Movement Numpad Keybinds 0 Fullscreen 1 Font 32/SmallcapsGlow Map View 50x35 Zoom Use 0% Tactical HUD 0 Map Filters NONE Filters NONE Steam 1 RUN: 6871086b-29b8-4642-b8d4-76cbab12e171